fUSD/lending_fUSD_20250618
["ID","MTS","AMOUNT","RATE_DAILY","PERIOD"]
[366434521,1750254358026,-500.0,0.00027658,30]
[366434522,1750254358068,-500.0,0.00027658,30]
[366434523,1750254358107,-500.0,0.00027658,30]
[366434524,1750254358147,-500.0,0.00027658,30]
[366434525,1750254358185,-500.0,0.00027658,30]
[366434526,1750254358225,-500.0,0.00027658,30]
[366434527,1750254358265,-500.0,0.00027658,30]
[366434528,1750254358309,-500.0,0.00027658,30]
[366434529,1750254358349,-500.0,0.00027658,30]
[366434530,1750254358389,-500.0,0.00027658,30]
[366434531,1750254358426,-500.0,0.00027658,30]
[366434532,1750254358463,-500.0,0.00027658,30]
[366434533,1750254358500,-159.30334209,0.00027658,30]
[366434534,1750254358542,-500.0,0.00027658,30]
[366434535,1750254358579,-500.0,0.00027658,30]
[366434536,1750254358617,-500.0,0.00027658,30]
[366434537,1750254358653,-500.0,0.00027658,30]
[366434538,1750254358690,-500.0,0.00027658,30]
[366434539,1750254358731,-500.0,0.00027658,30]
[366434540,1750254358767,-500.0,0.00027658,30]
[366434541,1750254358806,-498.68756413,0.00027658,30]
[366434542,1750254358843,-498.68756413,0.00027658,30]
[366434543,1750254358879,-498.68756413,0.00027658,30]
[366434544,1750254358916,-383.57769061,0.00027658,30]
[366434545,1750254358954,-1073.63551528,0.00028,120]
[366434546,1750254358991,-1148.97633459,0.00028,120]
[366434547,1750254359030,-1200.0,0.00028,120]
[366434548,1750254359069,-2000.0,0.00028121,60]
[366434549,1750254359106,-310.00111467,0.00028473,30]
[366434550,1750254359144,-500.0,0.00028657,120]
[366434551,1750254359180,-150.0,0.00028767,60]
[366434552,1750254359221,-2000.0,0.00028987,60]
[366434553,1750254359493,-1800.0,0.00029,30]
[366434554,1750254359534,-175.0,0.00029,120]
[366434555,1750254359577,-162.0,0.00029,120]
[366434556,1750254359617,-673.37098851,0.00029,120]
[366434557,1750254359655,-321.0,0.00029,30]
[366434558,1750254359693,-2000.0,0.00029853,60]
[366434559,1750254359734,-310.00005573,0.00029897,120]
[366434560,1750254359773,-1180.0,0.0003,30]
[366434561,1750254359813,-1844.0431603,0.0003,31]
[366434562,1750254359852,-150.1051554,0.0003,120]
[366434563,1750254359896,-1800.0,0.0003,31]
[366434564,1750254359939,-1000.0,0.0003,120]
[366434565,1750254359979,-512.33249304,0.0003,60]
[366434566,1750254360020,-752.23313639,0.0003,30]
[366434567,1750254360063,-3259.24966987,0.0003,60]
[366434568,1750254360106,-305.09184023,0.0003,60]
[366434569,1750254360148,-300.0,0.0003,30]
[366434570,1750254360195,-2960.14661564,0.0003,120]
[366434571,1750254360238,-1200.0,0.0003,120]
[366434572,1750254360280,-600.0,0.0003,120]
[366434573,1750254360324,-321.0,0.0003,30]
[366434574,1750254360366,-1000.0,0.0003,30]
[366434575,1750254360409,-833.92080167,0.0003,120]
[366434576,1750254360458,-159.42,0.000301,31]
[366434577,1750254360505,-159.42,0.000301,31]
[366434578,1750254360553,-159.42,0.000301,31]
[366434579,1750254360601,-159.42,0.000301,31]
[366434580,1750254360647,-159.42,0.000301,31]
[366434581,1750254360694,-159.42,0.000301,31]
[366434582,1750254360741,-159.42,0.000301,31]
[366434583,1750254360786,-159.42,0.000301,31]
[366434584,1750254360831,-159.42,0.000301,31]
[366434585,1750254360877,-159.42,0.000301,31]
[366434586,1750254360922,-159.42,0.000301,31]
[366434587,1750254360969,-159.42,0.000301,31]
[366434588,1750254361014,-159.42,0.000301,31]
[366434589,1750254361063,-159.42,0.000301,31]
[366434590,1750254361113,-159.42,0.000301,31]
[366434591,1750254361161,-159.42,0.000301,31]
[366434592,1750254361208,-159.42,0.000301,31]
[366434593,1750254361258,-159.42,0.000301,31]
[366434594,1750254361307,-159.42,0.000301,31]
[366434595,1750254361356,-159.42,0.000301,31]
[366434596,1750254361405,-159.42,0.000301,31]
[366434597,1750254361454,-159.42,0.000301,31]
[366434598,1750254361502,-159.42,0.000301,31]
[366434599,1750254361548,-159.42,0.000301,31]
[366434600,1750254361590,-652.0618054,0.0003013,120]
[366434601,1750254361634,-300.0,0.00030137,80]
[366434602,1750254361678,-1333.0,0.00030575,120]
[366434603,1750254361719,-548.0,0.00030613,30]
[366434604,1750254361761,-585.656356,0.00030657,120]
[366434605,1750254361803,-150.0,0.00030685,90]
[366434606,1750254361848,-2000.0,0.00030719,60]
[366434607,1750254361892,-1000.0,0.000308,120]
[366434608,1750254361936,-664.94206081,0.00031,30]
[366434609,1750254361981,-321.0,0.00031,30]
[366434610,1750254362026,-310.00000279,0.00031392,30]
[366434611,1750254362068,-172.63733097,0.000314,30]
[366434612,1750254362112,-2000.0,0.00031585,60]
[366434613,1750254362158,-1859.44781,0.000316,120]
[366434614,1750254362204,-185.5,0.00031644,91]
[366434615,1750254362249,-1500.0,0.00032,120]
[366434616,1750254362293,-321.0,0.00032,30]
[366434617,1750254362336,-1333.0,0.00032055,30]
[366434618,1750254362378,-2000.0,0.00032451,60]
[366434619,1750254362421,-1000000.0,0.000328,120]
[366434620,1750254362464,-1088.35,0.00032876,32]
[366434621,1750254362507,-1088.35,0.00032876,37]
[366434622,1750254362548,-1088.35,0.00032876,42]
[366434623,1750254362590,-1088.35,0.00032876,47]
[366434624,1750254362637,-1088.35,0.00032876,52]
[366434625,1750254362678,-1088.35,0.00032876,57]
[366434626,1750254362721,-1088.35,0.00032876,62]
[366434627,1750254362762,-1088.35,0.00032876,67]
[366434628,1750254362804,-1088.35,0.00032876,72]
[366434629,1750254362845,-1088.35,0.00032876,77]
[366434630,1750254362884,-1088.35,0.00032876,82]
[366434631,1750254362925,-1088.35,0.00032876,87]
[366434632,1750254362965,-1088.35,0.00032876,92]
[366434633,1750254363007,-1088.35,0.00032876,97]
[366434634,1750254363052,-1088.35,0.00032876,97]
[366434635,1750254363097,-1088.35,0.00032876,97]
[366434636,1750254363141,-1088.35,0.00032876,97]
[366434637,1750254363186,-1088.44637831,0.00032876,97]
[366434638,1750254363233,-151.69431171,0.00033,30]
[366434639,1750254363278,-203.11527223,0.00033,120]
[366434640,1750254363325,-160.0,0.00033,30]
[366434641,1750254363370,-2379.41096262,0.00033,30]
[366434642,1750254363417,-321.0,0.00033,30]
[366434643,1750254363462,-500.0,0.00033178,120]
[366434644,1750254363506,-500.0,0.00033178,120]
[366434645,1750254363550,-538.19232461,0.00033178,120]
[366434646,1750254363595,-200.0,0.00033298,120]
[366434647,1750254363971,-2000.0,0.00033317,60]
[366434648,1750254364024,-159.42,0.000335,31]
[366434649,1750254364078,-159.42,0.000335,31]
[366434650,1750254364130,-159.42,0.000335,31]
[366434651,1750254364182,-159.42,0.000335,31]
[366434652,1750254364234,-159.42,0.000335,31]
[366434653,1750254364293,-159.42,0.000335,31]
[366434654,1750254364356,-159.42,0.000335,31]
[366434655,1750254364411,-159.42,0.000335,31]
[366434656,1750254364467,-159.42,0.000335,31]
[366434657,1750254364521,-159.42,0.000335,31]
[366434658,1750254364575,-159.42,0.000335,31]
[366434659,1750254364626,-159.42,0.000335,31]
[366434660,1750254364669,-768.0,0.00033674,30]
[366434661,1750254364712,-490.5218336,0.000339,120]
[366434662,1750254364759,-300.0,0.00033904,120]
[366434663,1750254364805,-1500.0,0.00034,120]
[366434664,1750254364850,-3100.0,0.00034,60]
[366434665,1750254364896,-321.0,0.00034,30]
[366434666,1750254364943,-1156.193238,0.00034183,60]
[366434667,1750254364989,-176.44831078,0.000345,120]
[366434668,1750254365035,-15050.11742953,0.000349,120]
[366434669,1750254365081,-431.09123783,0.00035,60]
[366434670,1750254365127,-735.35575657,0.00035,30]
[366434671,1750254365175,-2853.13406718,0.00035,120]
[366434672,1750254365220,-158.96381718,0.00035,30]
[366434673,1750254365270,-230.91169833,0.00035,120]
[366434674,1750254365319,-445.5890181,0.00035,120]
[366434675,1750254365367,-575.28321164,0.00035,90]
[366434676,1750254365419,-156.58067572,0.00035,120]
[366434677,1750254365465,-321.0,0.00035,30]
[366434678,1750254365510,-682.10864447,0.00035,120]
[366434679,1750254365559,-1271.10891435,0.00035,30]
[366434680,1750254365606,-1333.0,0.00035014,90]
[366434681,1750254365658,-175.0,0.000351,120]
[366434682,1750254365707,-162.0,0.000351,120]
[366434683,1750254365753,-150.0,0.00035204,120]
[366434684,1750254365799,-150.0,0.00035494,120]
[366434685,1750254365841,-150.0,0.00035562,120]
[366434686,1750254365886,-150.0,0.00035586,120]
[366434687,1750254365933,-3675.0,0.00035589,120]
[366434688,1750254365977,-1000.0,0.00035616,60]
[366434689,1750254366023,-1052.0,0.00035616,120]
[366434690,1750254366073,-500.0,0.00035664,60]
[366434691,1750254366118,-500.0,0.00035664,60]
[366434692,1750254366169,-150.0,0.00035666,120]
[366434693,1750254366215,-150.0,0.00035699,120]
[366434694,1750254366259,-150.0,0.00035717,120]
[366434695,1750254366306,-205.0,0.00035789,30]
[366434696,1750254366351,-150.0,0.00035804,120]
[366434697,1750254366395,-2482.55972,0.00035888,30]
[366434698,1750254366442,-963.0,0.0003589,60]
[366434699,1750254366490,-963.0,0.0003589,60]
[366434700,1750254366536,-963.0,0.0003589,60]
[366434701,1750254366586,-963.0,0.0003589,60]
[366434702,1750254366633,-963.0,0.0003589,60]
[366434703,1750254366678,-963.0,0.0003589,60]
[366434704,1750254366723,-963.0,0.0003589,60]
[366434705,1750254366769,-963.0,0.0003589,60]
[366434706,1750254366814,-963.0,0.0003589,60]
[366434707,1750254366861,-963.0,0.0003589,60]
[366434708,1750254366907,-963.0,0.0003589,60]
[366434709,1750254366953,-963.0,0.0003589,60]
[366434710,1750254366999,-963.0,0.0003589,60]
[366434711,1750254367044,-587.0,0.0003589,60]
[366434712,1750254367089,-587.0,0.0003589,60]
[366434713,1750254367134,-587.0,0.0003589,60]
[366434714,1750254367178,-587.0,0.0003589,60]
[366434715,1750254367222,-587.0,0.0003589,60]
[366434716,1750254367268,-587.0,0.0003589,60]
[366434717,1750254367315,-587.0,0.0003589,60]
[366434718,1750254367363,-587.0,0.0003589,60]
[366434719,1750254367408,-587.0,0.0003589,60]
[366434720,1750254367452,-587.0,0.0003589,60]
[366434721,1750254367494,-587.0,0.0003589,60]
[366434722,1750254367541,-587.0,0.0003589,60]
[366434723,1750254367585,-587.0,0.0003589,60]
[366434724,1750254367630,-963.0,0.0003589,60]
[366434725,1750254367673,-963.0,0.0003589,60]
[366434726,1750254367716,-963.0,0.0003589,60]
[366434727,1750254367760,-963.0,0.0003589,60]
[366434728,1750254367809,-963.0,0.0003589,60]
[366434729,1750254367851,-963.0,0.0003589,60]
[366434730,1750254367892,-963.0,0.0003589,60]
[366434731,1750254367933,-963.0,0.0003589,60]
[366434732,1750254367975,-963.0,0.0003589,60]
[366434733,1750254368016,-963.0,0.0003589,60]
[366434734,1750254368059,-963.0,0.0003589,60]
[366434735,1750254368100,-963.0,0.0003589,60]
[366434736,1750254368145,-963.0,0.0003589,60]
[366434737,1750254368195,-963.0,0.0003589,60]
[366434738,1750254368240,-587.0,0.0003589,60]
[366434739,1750254368285,-587.0,0.0003589,60]
[366434740,1750254368332,-587.0,0.0003589,60]
[366434741,1750254368606,-587.0,0.0003589,60]
[366434742,1750254368653,-587.0,0.0003589,60]
[366434743,1750254368694,-587.0,0.0003589,60]
[366434744,1750254368737,-587.0,0.0003589,60]
[366434745,1750254368778,-587.0,0.0003589,60]
[366434746,1750254368822,-587.0,0.0003589,60]
[366434747,1750254368863,-587.0,0.0003589,60]
[366434748,1750254368905,-587.0,0.0003589,60]
[366434749,1750254368947,-587.0,0.0003589,60]
[366434750,1750254368988,-587.0,0.0003589,60]
[366434751,1750254369029,-587.0,0.0003589,60]
[366434752,1750254369072,-963.0,0.0003589,60]
[366434753,1750254369117,-963.0,0.0003589,60]
[366434754,1750254369159,-963.0,0.0003589,60]
[366434755,1750254369203,-963.0,0.0003589,60]
[366434756,1750254369248,-963.0,0.0003589,60]
[366434757,1750254369294,-963.0,0.0003589,60]
[366434758,1750254369340,-963.0,0.0003589,60]
[366434759,1750254369386,-963.0,0.0003589,60]
[366434760,1750254369439,-963.0,0.0003589,60]
[366434761,1750254369482,-963.0,0.0003589,60]
[366434762,1750254369525,-963.0,0.0003589,60]
[366434763,1750254369574,-963.0,0.0003589,60]
[366434764,1750254369617,-963.0,0.0003589,60]
[366434765,1750254369660,-963.0,0.0003589,60]
[366434766,1750254369701,-587.0,0.0003589,60]
[366434767,1750254369743,-587.0,0.0003589,60]
[366434768,1750254369785,-587.0,0.0003589,60]
[366434769,1750254369829,-587.0,0.0003589,60]
[366434770,1750254369873,-587.0,0.0003589,60]
[366434771,1750254369916,-587.0,0.0003589,60]
[366434772,1750254369961,-587.0,0.0003589,60]
[366434773,1750254370005,-587.0,0.0003589,60]
[366434774,1750254370048,-587.0,0.0003589,60]
[366434775,1750254370091,-587.0,0.0003589,60]
[366434776,1750254370134,-587.0,0.0003589,60]
[366434777,1750254370178,-587.0,0.0003589,60]
[366434778,1750254370222,-587.0,0.0003589,60]
[366434779,1750254370266,-587.0,0.0003589,60]
[366434780,1750254370313,-963.0,0.0003589,60]
[366434781,1750254370357,-963.0,0.0003589,60]
[366434782,1750254370401,-963.0,0.0003589,60]
[366434783,1750254370445,-963.0,0.0003589,60]
[366434784,1750254370488,-963.0,0.0003589,60]
[366434785,1750254370532,-963.0,0.0003589,60]
[366434786,1750254370580,-963.0,0.0003589,60]
[366434787,1750254370624,-963.0,0.0003589,60]
[366434788,1750254370666,-963.0,0.0003589,60]
[366434789,1750254370711,-963.0,0.0003589,60]
[366434790,1750254370755,-963.0,0.0003589,60]
[366434791,1750254370797,-963.0,0.0003589,60]
[366434792,1750254370838,-963.0,0.0003589,60]
[366434793,1750254370880,-963.0,0.0003589,60]
[366434794,1750254370923,-587.0,0.0003589,60]
[366434795,1750254370964,-587.0,0.0003589,60]
[366434796,1750254371006,-587.0,0.0003589,60]
[366434797,1750254371049,-587.0,0.0003589,60]
[366434798,1750254371091,-587.0,0.0003589,60]
[366434799,1750254371137,-587.0,0.0003589,60]
[366434800,1750254371183,-587.0,0.0003589,60]
[366434801,1750254371231,-587.0,0.0003589,60]
[366434802,1750254371284,-587.0,0.0003589,60]
[366434803,1750254371334,-587.0,0.0003589,60]
[366434804,1750254371378,-587.0,0.0003589,60]
[366434805,1750254371430,-587.0,0.0003589,60]
[366434806,1750254371473,-587.0,0.0003589,60]
[366434807,1750254371518,-587.0,0.0003589,60]
[366434808,1750254371563,-963.0,0.0003589,60]
[366434809,1750254371610,-963.0,0.0003589,60]
[366434810,1750254371655,-963.0,0.0003589,60]
[366434811,1750254371699,-963.0,0.0003589,60]
[366434812,1750254371742,-963.0,0.0003589,60]
[366434813,1750254371786,-963.0,0.0003589,60]
[366434814,1750254371832,-963.0,0.0003589,60]
[366434815,1750254371876,-963.0,0.0003589,60]
[366434816,1750254371920,-963.0,0.0003589,60]
[366434817,1750254371966,-963.0,0.0003589,60]
[366434818,1750254372010,-963.0,0.0003589,60]
[366434819,1750254372054,-963.0,0.0003589,60]
[366434820,1750254372097,-963.0,0.0003589,60]
[366434821,1750254372140,-963.0,0.0003589,60]
[366434822,1750254372185,-587.0,0.0003589,60]
[366434823,1750254372438,-587.0,0.0003589,60]
[366434824,1750254372482,-587.0,0.0003589,60]
[366434825,1750254372526,-587.0,0.0003589,60]
[366434826,1750254372571,-587.0,0.0003589,60]
[366434827,1750254372615,-587.0,0.0003589,60]
[366434828,1750254372659,-587.0,0.0003589,60]
[366434829,1750254372702,-587.0,0.0003589,60]
[366434830,1750254372745,-587.0,0.0003589,60]
[366434831,1750254372787,-587.0,0.0003589,60]
[366434832,1750254372832,-587.0,0.0003589,60]
[366434833,1750254372874,-587.0,0.0003589,60]
[366434834,1750254372919,-587.0,0.0003589,60]
[366434835,1750254373180,-587.0,0.0003589,60]
[366434836,1750254373225,-963.0,0.0003589,60]
[366434837,1750254373269,-963.0,0.0003589,60]
[366434838,1750254373315,-963.0,0.0003589,60]
[366434839,1750254373363,-963.0,0.0003589,60]
[366434840,1750254373410,-963.0,0.0003589,60]
[366434841,1750254373454,-963.0,0.0003589,60]
[366434842,1750254373504,-963.0,0.0003589,60]
[366434843,1750254373555,-963.0,0.0003589,60]
[366434844,1750254373600,-963.0,0.0003589,60]
[366434845,1750254373643,-963.0,0.0003589,60]
[366434846,1750254373685,-963.0,0.0003589,60]
[366434847,1750254373728,-963.0,0.0003589,60]
[366434848,1750254373769,-963.0,0.0003589,60]
[366434849,1750254373811,-963.0,0.0003589,60]
[366434850,1750254373856,-587.0,0.0003589,60]
[366434851,1750254373896,-587.0,0.0003589,60]
[366434852,1750254373940,-587.0,0.0003589,60]
[366434853,1750254373984,-587.0,0.0003589,60]
[366434854,1750254374025,-587.0,0.0003589,60]
[366434855,1750254374068,-587.0,0.0003589,60]
[366434856,1750254374113,-587.0,0.0003589,60]
[366434857,1750254374160,-587.0,0.0003589,60]
[366434858,1750254374204,-587.0,0.0003589,60]
[366434859,1750254374247,-587.0,0.0003589,60]
[366434861,1750254374291,-587.0,0.0003589,60]
[366434862,1750254374337,-587.0,0.0003589,60]
[366434863,1750254374380,-587.0,0.0003589,60]
[366434864,1750254374422,-587.0,0.0003589,60]
[366434865,1750254374465,-963.0,0.0003589,60]
[366434866,1750254374507,-963.0,0.0003589,60]
[366434867,1750254374551,-963.0,0.0003589,60]
[366434868,1750254374594,-963.0,0.0003589,60]
[366434869,1750254374638,-963.0,0.0003589,60]
[366434870,1750254374680,-963.0,0.0003589,60]
[366434871,1750254374725,-963.0,0.0003589,60]
[366434872,1750254374771,-963.0,0.0003589,60]
[366434873,1750254374816,-963.0,0.0003589,60]
[366434874,1750254374860,-963.0,0.0003589,60]
[366434875,1750254374904,-963.0,0.0003589,60]
[366434876,1750254374953,-963.0,0.0003589,60]
[366434877,1750254374999,-963.0,0.0003589,60]
[366434878,1750254375044,-963.0,0.0003589,60]
[366434879,1750254375089,-587.0,0.0003589,60]
[366434880,1750254375132,-587.0,0.0003589,60]
[366434881,1750254375175,-587.0,0.0003589,60]
[366434882,1750254375217,-587.0,0.0003589,60]
[366434883,1750254375260,-587.0,0.0003589,60]
[366434884,1750254375305,-587.0,0.0003589,60]
[366434885,1750254375350,-587.0,0.0003589,60]
[366434886,1750254375394,-587.0,0.0003589,60]
[366434887,1750254375435,-587.0,0.0003589,60]
[366434888,1750254375476,-587.0,0.0003589,60]
[366434889,1750254375518,-587.0,0.0003589,60]
[366434890,1750254375560,-587.0,0.0003589,60]
[366434891,1750254375603,-587.0,0.0003589,60]
[366434892,1750254375646,-587.0,0.0003589,60]
[366434893,1750254375687,-1000.0,0.000359,120]
[366434894,1750254375729,-1000.0,0.00036,120]
[366434895,1750254375772,-352.15961262,0.00036,120]
[366434896,1750254375816,-1759.921206,0.00036,120]
[366434897,1750254375859,-183.0,0.00036,30]
[366434898,1750254375903,-1500.0,0.00036,120]
[366434899,1750254375946,-321.0,0.00036,30]
[366434900,1750254375990,-150.0,0.00036043,120]
[366434901,1750254376035,-150.0,0.00036072,120]
[366434902,1750254376084,-2482.55972,0.00036088,30]
[366434903,1750254376130,-150.0,0.00036179,120]
[366434904,1750254376176,-500.0,0.00036212,60]
[366434905,1750254376220,-150.0,0.00036265,120]
[366434906,1750254376263,-2482.55972,0.00036288,30]
[366434907,1750254376312,-150.0,0.00036406,120]
[366434908,1750254376357,-2482.55972,0.00036488,30]
[366434909,1750254376401,-1333.0,0.00036493,120]
[366434910,1750254376444,-150.0,0.00036538,120]
[366434911,1750254376486,-401.82766092,0.0003666,120]
[366434912,1750254376529,-150.0,0.00036673,120]
[366434913,1750254376575,-2482.55972,0.00036688,30]
[366434914,1750254376617,-150.0,0.00036703,120]
[366434915,1750254376662,-500.0,0.0003676,60]
[366434916,1750254376704,-500.0,0.0003676,60]
[366434917,1750254376747,-1949.39549881,0.000368,60]
[366434918,1750254376788,-530.33864466,0.0003688,120]
[366434919,1750254376832,-2482.55972,0.00036888,30]
[366434920,1750254376875,-1000.0,0.000369,120]
[366434921,1750254376922,-1000.0,0.0003693,30]
[366434922,1750254376967,-1000.0,0.00036935,30]
[366434923,1750254377025,-1000.0,0.00037,45]
[366434924,1750254377067,-2593.0,0.00037,60]
[366434925,1750254377110,-1564.36707593,0.00037,30]
[366434926,1750254377153,-500.0,0.00037,120]
[366434927,1750254377197,-1422.9,0.00037,40]
[366434928,1750254377243,-5995.0,0.00037,117]
[366434929,1750254377288,-1075.0,0.00037042,30]
[366434930,1750254377561,-2482.55972,0.00037088,30]
[366434931,1750254377605,-150.0,0.00037114,30]
[366434932,1750254377650,-2544.62103481,0.00037114,30]
[366434933,1750254377695,-150.0,0.00037114,30]
[366434934,1750254377740,-32893.63340232,0.00037114,30]
[366434935,1750254377784,-150.0,0.00037114,30]
[366434936,1750254377826,-1089.06209032,0.00037114,30]
[366434937,1750254377871,-150.0,0.00037142,120]
[366434938,1750254377913,-150.0,0.00037157,120]
[366434939,1750254377956,-205.0,0.00037213,31]
[366434940,1750254377998,-150.0,0.00037253,120]
[366434941,1750254378042,-150.0,0.00037261,120]
[366434942,1750254378086,-2482.55972,0.00037288,30]
[366434943,1750254378130,-500.0,0.00037308,60]
[366434944,1750254378172,-2482.55972,0.00037488,30]
[366434945,1750254378214,-498.75,0.000375,120]
[366434946,1750254378257,-2009.03738923,0.000375,120]
[366434947,1750254378300,-150.0,0.00037589,120]
[366434948,1750254378344,-150.0,0.00037661,120]
[366434949,1750254378387,-300.0,0.00037671,120]
[366434950,1750254378428,-2482.55972,0.00037688,30]
[366434951,1750254378477,-150.0,0.00037698,120]
[366434952,1750254378521,-150.0,0.00037731,120]
[366434953,1750254378564,-204.0,0.00037808,60]
[366434954,1750254378607,-2027.90721127,0.00037851,60]
[366434955,1750254378651,-500.0,0.00037856,60]
[366434956,1750254378693,-500.0,0.00037856,60]
[366434957,1750254378735,-2482.55972,0.00037888,30]
[366434958,1750254378776,-1000.0,0.000379,120]
[366434959,1750254378818,-1000.0,0.0003795,45]
[366434960,1750254378860,-2200000.0,0.00038,30]
[366434961,1750254378903,-5000.0,0.00038,120]
[366434962,1750254378947,-144365.17635579,0.00038,30]
[366434963,1750254390043,201.0,0.00013003,2]
[366434964,1750254397295,-833.92080167,0.0003,120]
[366434965,1750254397342,-159.34122541,0.0003,60]
[366434966,1750254397386,-159.3412253,0.0003,60]
[366434967,1750254397429,-159.3412253,0.0003,60]
[366434968,1750254397503,-2468.50435489,0.000372,120]
[366434969,1750254397551,-2468.50435486,0.000372,120]
[366434970,1750254397597,-2468.50435486,0.000372,120]
[366434971,1750254397639,-2468.50435486,0.000372,120]
[366434972,1750254397682,-2848.57,0.00038,120]
[366434973,1750254397724,-500.95033236,0.00038,60]
[366434974,1750254397766,-314.55519054,0.00038,120]
[366434975,1750254397807,-1500.0,0.00038,120]
[366434976,1750254397849,-150.0,0.00038087,120]
[366434977,1750254397888,-500.0,0.0003825,60]
[366434978,1750254397930,-1014.19,0.00038356,120]
[366434979,1750254397972,-1014.19,0.00038356,120]
[366434980,1750254398013,-1014.19,0.00038356,120]
[366434981,1750254398053,-1014.19,0.00038356,120]
[366434982,1750254398465,-1014.19,0.00038356,120]
[366434983,1750254398511,-1014.19,0.00038356,120]
[366434984,1750254398556,-1014.19,0.00038356,120]
[366434985,1750254398598,-1014.19,0.00038356,120]
[366434986,1750254398638,-1014.19,0.00038356,120]
[366434987,1750254398678,-1014.19,0.00038356,120]
[366434988,1750254398718,-1014.19,0.00038356,120]
[366434989,1750254398760,-1014.19,0.00038356,120]
[366434990,1750254398802,-1014.19,0.00038356,120]
[366434991,1750254398845,-1014.19,0.00038356,120]
[366434992,1750254398887,-1014.19,0.00038356,120]
[366434993,1750254398930,-1014.19,0.00038356,120]
[366434994,1750254398971,-1014.19,0.00038356,120]
[366434995,1750254399014,-1014.19,0.00038356,120]
[366434996,1750254399056,-1014.19,0.00038356,120]
[366434997,1750254399102,-1014.19,0.00038356,120]
[366434998,1750254399145,-1014.19,0.00038356,120]
[366434999,1750254399187,-1014.19,0.00038356,120]
[366435000,1750254399233,-1014.19,0.00038356,120]
[366435001,1750254399279,-1014.35997522,0.00038356,120]
[366435002,1750254399326,-490.0,0.00038356,120]
[366435003,1750254399372,-490.0,0.00038356,120]
[366435004,1750254399415,-490.0,0.00038356,120]
[366435005,1750254399458,-490.0,0.00038356,120]
[366435006,1750254399505,-490.0,0.00038356,120]
[366435007,1750254399552,-490.0,0.00038356,120]
[366435008,1750254399597,-490.0,0.00038356,120]
[366435009,1750254399640,-490.0,0.00038356,120]
[366435010,1750254399683,-458.79704496,0.00038356,120]
[366435011,1750254399728,-2766.69334521,0.00038356,90]
[366435012,1750254399774,-2502.425192,0.00038356,120]
[366435013,1750254399821,-150.0,0.00038429,120]
[366435014,1750254399867,-983.27306094,0.00038498,120]
[366435015,1750254399912,-251.71367614,0.000385,120]
[366435016,1750254399959,-150.0,0.00038522,120]
[366435017,1750254400003,-787.7,0.00038657,120]
[366435018,1750254400048,-787.7,0.00038657,120]
[366435019,1750254400093,-787.7,0.00038657,120]
[366435020,1750254400141,-787.7,0.00038657,120]
[366435021,1750254400186,-787.7,0.00038657,120]